Cogmind - Beta 17.1 @@@ ROGUE MODE // 2026.09.16 @ 19:49:36 Player: Zaje Result: Destroyed by D-53 Grenadier with Mini Grenade Launcher Performance ------------- Evolutions (0) 0 Regions Visited (2) 400 Robots Destroyed (20) 100 Value Destroyed (587) 587 Prototype IDs (2) 40 Alien Tech Used (0) 0 Bonus (0) 0 TOTAL SCORE: 1127 Bonus ------- None Cogmind --------- Core Integrity 0/250 Matter 238/300 Energy 100/100 System Corruption 4% Temperature Cool (0) Movement Treading (160) Location -10/Mines Parts ------- > --- POWER (1) -------- (None) > --- PROPULSION (2) --- Light Treads > --- UTILITY (2) ------ Small Storage Unit Propulsion Shielding > --- WEAPON (2) ------- Rocket Launcher > --- INVENTORY (8) ---- Light Ion Engine Light Nuclear Core Propulsion Shielding Propulsion Shielding Hacking Suite Light Assault Rifle Grenade Launcher Grenade Launcher Peak State ------------ > --- POWER ------------ Ion Engine > --- PROPULSION ------- Light Treads Light Treads > --- UTILITY ---------- Small Storage Unit Propulsion Shielding > --- WEAPON ----------- Light Assault Rifle Rocket Launcher > --- INVENTORY -------- Light Ion Engine Light Nuclear Core Propulsion Shielding Propulsion Shielding Hacking Suite Light Assault Rifle Grenade Launcher Grenade Launcher [Rating: 9] Favorites ----------- Power Ion Engine Engine Ion Engine Propulsion Light Treads Treads Light Treads Leg Aluminum Leg Utility Small Storage Unit Storage Small Storage Unit Protection Propulsion Shielding Weapon Small Laser Energy Gun Small Laser Ballistic Gun Light Assault Rifle Launcher Rocket Launcher Build | -11 -10 -10 ------- Run | Yrd Mat Min Slots Evolved . | . . . Power . | . . . Propulsion . | . . . Utility . | . . . Weapon . | . . . Parts Attached 19 | 6 10 3 Power 2 | 1 1 . Engine 2 | 1 1 . Core . | . . . Reactor . | . . . Propulsion 4 | 2 2 . Treads 2 | . 2 . Leg 2 | 2 . . Wheel . | . . . Hover . | . . . Flight . | . . . Utility 5 | 1 2 2 Device . | . . . Storage 1 | 1 . . Processor . | . . . Hackware . | . . . Protection 4 | . 2 2 Artifact . | . . . Weapon 8 | 2 5 1 Energy Gun 4 | 2 2 . Energy Cannon . | . . . Ballistic Gun 3 | . 3 . Ballistic Cannon . | . . . Launcher 1 | . . 1 Special Weapon . | . . . Impact Weapon . | . . . Slashing Weapon . | . . . Piercing Weapon . | . . . Special Melee Weapon . | . . . Unidentified Prototypes . | . . . Parts Lost 6 | . 3 3 Power 1 | . . 1 Propulsion 1 | . . 1 Utility 1 | . 1 . Weapon 3 | . 2 1 Highest Loss Streak 3 | . 1 3 To Critical Strikes . | . . . Average Backups 7 | 1 7 8 Power 1 | . 1 2 Propulsion . | . . . Utility 3 | . 4 3 Weapon 1 | . 1 2 Tool/Special . | . . . Unused Backups 6 | . . 6 Power 2 | . . 2 Propulsion . | . . . Utility 2 | . . 2 Weapon 2 | . . 2 Tool/Special . | . . . Average Slot Usage (%) 98 | . 98 100 Engine 14 | . 14 14 Treads 18 | . 17 28 Leg 9 | . 10 . Storage 14 | . 14 14 Protection 13 | . 13 14 Energy Gun 16 | . 18 . Ballistic Gun 10 | . 8 23 Peak Build Rating 9 | 6 8 9 Average Rating 7 | 4 7 8 On Entrance 4 | . 6 8 Avg Prop Armor Cover (%) . | . . . Naked Turns . | . . . Heaviest Build 16 | 11 14 16 Greatest Support 40 | 20 40 40 Greatest Overweight (x) . | . . . Average Overweight (x) . | . . . Largest Inventory Capacity 8 | 8 8 8 Average Capacity 7 | 7 8 8 Most Carried 8 | 3 8 8 Average Carried 7 | 1 7 7 Final Capacity 8 | 8 8 8 Final Carried 8 | 3 8 8 Class Distribution -------------------- 100% | Mutant Dominant Class ---------------- Mutant | -10/Materials Mutant | -10/Mines Resources | -11 -10 -10 ----------- Run | Yrd Mat Min Matter Collected 435 | 260 175 . Remotely . | . . . Salvage Created 780 | . 698 82 Parts 39 | . 36 3 Haulers Intercepted 1 | . 1 . Recyclers Shooed . | . . . Parts Field Recycled . | . . . Retrieved Matter . | . . . Parts Self-Destructed . | . . . Prevented . | . . . Parts Restored . | . . . Kills | -11 -10 -10 ------- Run | Yrd Mat Min Combat Hostiles Destroyed 14 | . 14 . Guns 14 | . 14 . Classes Destroyed 5 | . 4 1 Hauler 1 | . 1 . Recycler 1 | . . 1 Operator 3 | . 3 . Watcher 1 | . 1 . Grunt 14 | . 14 . Best Kill Streak 3 | . 3 1 Combat Bots Only 3 | . 3 . Max Kills in Single Turn 1 | . 1 1 Gunslinging . | . . . Exploded . | . . . Melee . | . . . Uniques/NPCs Destroyed . | . . . Combat | -11 -10 -10 -------- Run | Yrd Mat Min Hostile Shots Fired 90 | . 82 8 Missed 20 | . 20 . Hits 70 | . 62 8 Projectile 70 | . 62 8 AOE 8 | . . 8 Critical Strikes 1 | . 1 . Damage Taken 1196 | . 782 414 Core 251 | . 164 87 Absorbed by Shields . | . . . Redirected to Shielding 107 | . 68 39 Core Remaining (%) 100 | 100 . . Volleys Fired 85 | . 81 4 Largest 2 | . 2 2 Hottest 90 | . 90 53 Shots Fired 163 | . 156 7 Gun 159 | . 156 3 Cannon . | . . . Launcher 4 | . . 4 Special . | . . . Kinetic 56 | . 53 3 Thermal 103 | . 103 . Explosive 4 | . . 4 Electromagnetic . | . . . Robot Hit Streak 13 | . 13 2 Robot Miss Streak 5 | . 5 1 Penetration Max . | . . . Secondary Targets . | . . . Shots Hit Robots 102 | . 99 3 Core Hits 48 | . 44 4 Critical Kills . | . . . Critical Parts Destroyed 1 | . 1 . Critical Strikes 2 | . 2 . Burn 1 | . 1 . Destroy 1 | . 1 . Melee Attacks . | . . . Impact . | . . . Slashing . | . . . Piercing . | . . . Sneak Attacks . | . . . Combat Hostiles . | . . . Follow-up Attacks . | . . . Damage Inflicted 1198 | . 1123 75 Guns 1129 | . 1123 6 Cannons . | . . . Explosions 69 | . . 69 Melee . | . . . Ramming . | . . . Kinetic 329 | . 323 6 Thermal 800 | . 800 . Explosive 69 | . . 69 Electromagnetic . | . . . Impact . | . . . Slashing . | . . . Piercing . | . . . Highest Corruption 4 | . 4 4 Average Corruption 3 | . 3 4 Corruption Purged . | . . . Corruption Blocked . | . . . Effects 6 | . 3 3 Message Errors 3 | . 1 2 Energy Discharges 2 | . 1 1 Alerts 1 | . 1 . Overload Shots . | . . . Overflow Damage . | . . . Projectiles . | . . . Explosions . | . . . Melee . | . . . Knockbacks . | . . . Impact . | . . . Kinetic . | . . . Secondary . | . . . Self-Inflicted Damage 64 | . . 64 Shots 3 | . . 3 Rammed . | . . . Targets Rammed . | . . . Kicked . | . . . Crushed . | . . . Highest Temperature 315 | . 315 14 Average Temperature 77 | . 79 8 Received Heat Transfer 456 | . 456 . Effects 2 | . 2 . Energy Bleed 2 | . 2 . Siege Activations . | . . . Martial Activations . | . . . Shielding Activations . | . . . Robots Disrupted . | . . . Combat Hostiles . | . . . Robots Corrupted . | . . . Combat Hostiles . | . . . Parts Fried . | . . . Impact Corruptions . | . . . Robots Melted . | . . . Combat Hostiles . | . . . Parts Melted 3 | . 3 . Heat Transferred 2024 | . 2024 . Parts Sabotaged . | . . . Parts Stolen . | . . . Parts Stripped . | . . . Power Chain Reactions . | . . . Alert | -11 -10 -10 ------- Run | Yrd Mat Min Maximum Alert Level . | . . . Low Security (%) 100 | 100 100 100 Level 1 . | . . . Level 2 . | . . . Level 3 . | . . . Level 4 . | . . . Level 5 . | . . . High Security . | . . . Max Security . | . . . Peak Influence 92 | . 92 28 Initial 28 | . . 28 Average 26 | . 31 7 Influence Increases 414 | . 396 18 Destroy 0b10 Robot/C 280 | . 280 . Destroy 0b10 Robot/NC 30 | . 25 5 Destroy Leader 74 | . 74 . Destroy Structure 15 | . 2 13 Lose Combat Pursuer 15 | . 15 . Influence Decreases 414 | . 322 92 Entered New Map 46 | . . 46 Time Decay 320 | . 292 28 Lost Part 48 | . 30 18 Squads Dispatched 4 | . 4 . Investigation 2 | . 2 . Extermination . | . . . Reinforcement 2 | . 2 . Assault . | . . . Garrison . | . . . Intercept . | . . . Searches Triggered . | . . . Construction Impeded . | . . . Haulers Reinforced . | . . . Active Scanning Responses . | . . . Cargo Convoy Interrupts . | . . . Stealth | -11 -10 -10 --------- Run | Yrd Mat Min Distress Signals 1 | . 1 . Communications Jammed . | . . . Distress Signals . | . . . Times Spotted 26 | . 24 2 Peak Tracking Total 3 | . 3 2 Tactical Retreats 1 | . 1 . Traps | -11 -10 -10 ------- Run | Yrd Mat Min Traps Triggered 4 | . 4 . Indirectly . | . . . Trap Hack Attempts . | . . . Triggered . | . . . Disarmed . | . . . Reprogrammed . | . . . Reused . | . . . Traps Extracted . | . . . Installed . | . . . Triggered . | . . . Machines | -11 -10 -10 ---------- Run | Yrd Mat Min Machines Disabled . | . . . Max in Single Turn . | . . . Machines Repaired . | . . . Machines Dismantled . | . . . Machines Sabotaged . | . . . Overloaded Fab Kills . | . . . Hacking | -11 -10 -10 --------- Run | Yrd Mat Min Machines Accessed 2 | . 2 . Terminals 2 | . 2 . Fabricators . | . . . Repair Stations . | . . . Recycling Units . | . . . Scanalyzers . | . . . Garrison Access . | . . . Total Hacks 5 | . 5 . Successful 4 | . 4 . Failed . | . . . Catastrophic . | . . . Database Lockouts 1 | . 1 . Manual 4 | . 4 . Terminals 5 | . 5 . Fabricators . | . . . Repair Stations . | . . . Recycling Units . | . . . Scanalyzers . | . . . Garrison Access . | . . . Terminal Hacks 4 | . 4 . Robot Analysis 1 | . 1 . Prototype ID Bank 1 | . 1 . Alert Level 1 | . 1 . Hauler Manifests 1 | . 1 . Fabricator Hacks . | . . . Repair Station Hacks . | . . . Recycling Unit Hacks . | . . . Scanalyzer . | . . . Garrison Access Hacks . | . . . Unauthorized Hacks . | . . . Terminals . | . . . Fabricators . | . . . Repair Stations . | . . . Recycling Units . | . . . Scanalyzers . | . . . Garrison Access . | . . . Data Cores Recovered 1 | . 1 . Used . | . . . Hacking Detections 2 | . 2 . Full Trace Events . | . . . Feedback Events . | . . . Feedback Blocked . | . . . Robot Schematics Acquired . | . . . Robots Built . | . . . Authchips . | . . . Time . | . . . Total Robot Build Rating . | . . . Part Schematics Acquired . | . . . Parts Built . | . . . Authchips . | . . . Time . | . . . Total Part Build Rating . | . . . Part Studies Acquired . | . . . Parts Repaired . | . . . Time . | . . . Parts Recycled . | . . . Recycled Matter . | . . . Retrieved Matter . | . . . Retrieved Components . | . . . Parts Scanalyzed . | . . . Part Schematics Acquired . | . . . Parts Damaged . | . . . Bothacking | -11 -10 -10 ------------ Run | Yrd Mat Min Used RIF Installer . | . . . Robots Hacked . | . . . Non-combat . | . . . Combat . | . . . Robot Hacks Applied . | . . . Relay Couplers Released . | . . . Fabnet Peak Effective % . | . . . Robots Rewired . | . . . Allies Hacked . | . . . Hacks Repelled . | . . . Allies | -11 -10 -10 -------- Run | Yrd Mat Min Total Allies . | . . . Largest Group . | . . . Highest-Rated Group . | . . . Highest-Rated Ally . | . . . Total Orders . | . . . Ally Attacks . | . . . Total Damage . | . . . Kills . | . . . Allies Corrupted . | . . . Allies Melted . | . . . Intel | -11 -10 -10 ------- Run | Yrd Mat Min Active Infowar (turns) . | . . . Robot Analysis Total 1 | . 1 . Derelict Logs Recovered . | . . . Drone Launches . | . . . Drone Recoveries . | . . . Exploration | -11 -10 -10 ------------- Run | Yrd Mat Min Turns Passed 1237 | 91 1008 138 Spaces Moved 661 | 73 511 77 Core 11 | 11 . . Treads 353 | . 276 77 Legs 297 | 62 235 . Wheels . | . . . Hover . | . . . Flight . | . . . Fastest Speed 50 | 50 120 160 Average Speed 140 | 109 141 160 Slowest Speed 160 | 120 160 160 Overloaded Moves . | . . . Propulsion Burnouts . | . . . Robots Hopped . | . . . Potential Cave-ins . | . . . Cave-ins Triggered . | . . . Exploration Rate (%) 28 | 3 63 20 Regions Visited 2 Branch Regions 1 Pre-discovered Areas . | . . . Known Exits Taken . | . . . Unknown Exits Taken 2 | 1 1 . Scrap Searched . | . . . Spaces Dug . | . . . Terrain Destroyed 26 | . . 26 Melee . | . . . Projectile . | . . . AOE 26 | . . 26 Terrain Rammed . | . . . Walls Destroyed . | . . . Machines Disabled . | . . . Actions | -11 -10 -10 --------- Run | Yrd Mat Min Total 816 | 81 649 86 Wait 32 | . 32 . Move 659 | 72 510 77 Hop . | . . . Pick Up 13 | 3 9 1 Fast Attach 10 | 6 4 . Attach 4 | . 4 . Detach 1 | . 1 . Swap 5 | . 2 3 Drop 7 | . 6 1 Fire 85 | . 81 4 Melee . | . . . Ram . | . . . Kick . | . . . Crush . | . . . Escape Stasis . | . . . Rewire . | . . . Trap . | . . . Miscellaneous . | . . . Route ------- -11/Scrapyard -10/Materials (discovered 2 exits: [*Mat] / [*Min]) -10/Mines History --------- Turn | Location | Event 11 | -11/Scrapyard | Discovered new exit (range 13) 92 | -11/Scrapyard | Entered Materials 247 | -10/Materials | Central database locked down 301 | -10/Materials | Build established: Mutant 840 | -10/Materials | Discovered new exit (range 3) 981 | -10/Materials | Core integrity fell below 50% 1084 | -10/Materials | Discovered new exit (range 8) 1100 | -10/Materials | Entered Mines 1107 | -10/Mines | Received a Rocket Launcher from a helpful Derelict 1186 | -10/Mines | Assembled infested the area 1238 | -10/Mines | Destroyed by D-53 Grenadier with Mini Grenade Launcher Last Messages --------------- 01108_ T-07 Excavator is excavating. 01113_ Dropped Propulsion Shielding. 01120_ Acquired Rocket Launcher. 01121_ T-07 Excavator is excavating. 01186_ ALERT: Infestation in the mines, dispatching Demolisher response squad. 01207_ W, BGO&Q&%YAW#ICPW:P VM% 01225_ System corrupted: Energy discharge (-95). 01230_ U-05 Engineer builds a Wall. 01230_ U-05 Engineer destroyed. 01231_ K-01 Serf collects debris. 01232_ Ion Engine destroyed. 01232_ R-06 Scavenger destroyed. 01234_ The unstable cave ceiling collapses. 01234_ K-01 Serf collects debris. 01235_ Lgt. Assault Rifle destroyed. 01235_ Lgt. Treads destroyed. 01235_ K-01 Serf destroyed. 01235_ D-53 Grenadier destroyed. 01236_ K-01 Serf collects debris. Map ----- +----------------------------------------------------+ | ?????????????????????????????????????????????????? | | ?????????????????????????????????????????????????? | | ?????????????????????????????????????????????????? | | ?????????????????????????????????????????????????? | | ?????????????????????????????????????????????????? | | ?????????????????????????????????????????????????? | | ?????????????????????????????????????????????????? | | ?????????????????????????????????????????????????? | | ?????????????????????????????????????????????????? | | ?????????????????????????????????????????????????? | | ?????????????????????????????????????????????????? | | ????????????????????????????? ???????????????????? | | ????????????????????????????? ????????????????? | | ????????????????????????????? #?#????????????? | | ???????????????????????????? # ##??????????? | | ???????????????????????????? ??????????? | | ???????????????????????????? k ??????????? | | ??????????????????????????## k % ??????????? | | ?????????????????????????? ! ??????????? | | ?????????????????????????? <%* ??????????? | | ??????????????????????#### ??????????? | | ?????????????????????## ???????????? | | ????????????????????## ??????????????? | | ????????????????????# #????????????????? | | ????????????????????# d #????????????????? | | ????????????????????# @ #????????????????? | | ????????????????????# #???????????????? | | ????????????????????# ##???????????????? | | ????????????????????## !####????????????????? | | ?????????????????????## # # ###??????????????? | | ??????????????????????# ##?????????????? | | ??????????????????????# ### ###???????????? | | ??????????????????????# #?## #???????????? | | ??????????????????????# #??## #???????????? | | ??????????????????????# t#???# ##???????????? | | ??????????????????????# #???# ##????????????? | | ??????????????????????# ???# ##?######??????? | | ??????????????????????# ???## #### ##?????? | | ??????????????????????####????## ## #?????? | | ???????????????????????????????# #?????? | | ???????????????????????????????## #?????? | | ????????????????????????????????## ##?????? | | ?????????????????????????????????### #??????? | | ???????????????????????????????????### #??????? | | ??????????????????????????# ?????????## ##??????? | | ?????????????????????????## ######## ##???????? | | ?????????????????????????# ## #????????? | | ????????????????????????# #????????? | | ????????????????????? ## ## #????????? | | ????????????????????? ???????# ## #????????? | +----------------------------------------------------+ Best States ------------- Heat Dissipation 25 Energy Generation 10 Energy Capacity 250 Matter Stores 300 Matter Capacity 300 Sight Range 16 Terrain Scan Density 10 Propulsion Shielding 33 Evasion (%) 55 Recoil Reduction 2 Item Schematics ----------------- None Robot Schematics ------------------ None Fabricated ------------ Nothing Repaired ---------- Nothing Studied --------- None Alien Tech Used ----------------- None Achievements -------------- None Challenges ------------ None Game ------ Seed BattleSixDeck Manual? 0 Play Time 00:10:34 Cumulative 11.1 hours Start 2026.09.14 @ 15:04:11 End 2026.09.16 @ 19:49:36 Sessions 2 Manual Loads 0 Difficulty Rogue Special Mode None Game No. 23 Rogue 23 Adventurer 0 Explorer 0 Win Type - Total 0 Types 0/0/0/0/0/0/0/0/0/0 Lore% 14 Gallery% 13 Achievement% 15 Wizard Run 0 Options --------- Layout 1 ASCII 0 Keyboard 1 Movement Vi Keybinds 1 Fullscreen 1 Font 32/SmallcapsGlow Map View 50x35 Zoom Use 0% Tactical HUD 1 Map Filters NONE Filters NONE Steam 1 RUN: ca2fcbdf-e141-4d9c-b108-e3f6642ba6f2